bitfinex-derivatives/quotes_SOLF0:USTF0_20220108
["timestamp","ask_amount","ask_price","bid_price","bid_amount"]
[1641632833209,17.10041316,146.08,146.04,14.48870744]
[1641632834609,6.84041316,146.08,146.04,14.48870744]
[1641632834809,27.66479,146.1,146.04,23.16770744]
[1641632835011,14.48870744,146.11,146.04,86.31280744]
[1641632836309,14.48870744,146.11,146.05,1.66808671]
[1641632836509,113.79083202,146.12,146.07,14.48870744]
[1641632836708,44.86333202,146.12,146.07,14.48870744]
[1641632837809,34.50333202,146.12,146.07,14.48870744]
[1641632838610,6.83854202,146.12,146.07,14.48870744]
[1641632839011,10.18,146.13,146.07,23.85445789]
[1641632839211,52.19349744,146.14,146.07,23.85445789]
[1641632839913,37.70479,146.14,146.07,23.85445789]
[1641632841015,37.70479,146.14,146.1,4.83807894]
[1641632842016,42.54286894,146.14,146.1,4.83807894]
[1641632842415,32.50286894,146.14,146.1,4.83807894]
[1641632842817,27.66479,146.14,146.09,6.50616565]
[1641632844119,34.86079,146.14,146.09,6.50616565]
[1641632844917,34.86079,146.14,146.1,4.83807894]
[1641632845117,27.66479,146.14,146.1,4.83807894]
[1641632848721,27.66479,146.14,146.08,68.28227894]
[1641632850822,33.62679,146.14,146.08,68.28227894]
[1641632851725,37.62679,146.14,146.08,68.28227894]
[1641632851925,33.62679,146.14,146.08,68.28227894]
[1641632852525,33.62679,146.14,146.08,63.4442]
[1641632853426,33.62679,146.14,146.08,68.28227894]
[1641632853626,27.66479,146.14,146.08,68.28227894]
[1641632855527,27.66479,146.14,146.09,6.50862983]
[1641632856229,27.66479,146.14,146.09,4.83807894]
[1641632856428,27.66479,146.14,146.08,68.28227894]
[1641632857029,24.66479,146.14,146.08,68.28227894]
[1641632857431,24.66479,146.14,146.09,6.50970974]
[1641632857629,16.89511868,146.14,146.09,6.50970974]
[1641632858231,16.89511868,146.14,146.1,4.83807894]
[1641632858930,16.89511868,146.14,146.11,4.83807894]
[1641632860033,21.73319762,146.14,146.13,4.83807894]
[1641632860935,16.89511868,146.14,146.13,4.83807894]
[1641632862738,27.73272552,146.14,146.13,4.83807894]
[1641632863039,23.73272552,146.14,146.13,4.83807894]
[1641632863237,23.73272552,146.14,146.12,4.83807894]
[1641632863438,26.90566971,146.14,146.12,4.83807894]
[1641632864238,23.73272552,146.14,146.11,4.83807894]
[1641632864438,4.85074937,146.13,146.11,4.83807894]
[1641632865038,4.85074937,146.13,146.1,6.50970974]
[1641632865039,4.85074937,146.12,146.1,6.50970974]
[1641632868143,10.91474937,146.12,146.1,6.50970974]
[1641632868548,6.064,146.12,146.11,4.83807894]
[1641632870650,10.91474937,146.12,146.1,6.50970974]
[1641632872150,30.83947746,146.11,146.03,38.51290754]
[1641632872351,4.0,146.05,146.03,38.51290754]
[1641632872549,6.67,146.05,146.03,38.51290754]
[1641632873651,6.67,146.05,146.0,63.8618]
[1641632874551,34.50613911,146.06,146.0,63.8618]
[1641632875352,34.50613911,146.06,146.0,71.4248]
[1641632875952,27.66479,146.06,146.0,71.4248]
[1641632876554,27.66479,146.06,146.01,7.67982692]
[1641632876956,72.48627746,146.1,146.01,7.67982692]
[1641632877756,76.48627746,146.1,146.01,7.67982692]
[1641632878155,4.0,146.09,146.01,7.67982692]
[1641632878357,27.66479,146.08,146.01,7.67982692]
[1641632879458,31.66479,146.08,146.01,7.67982692]
[1641632879759,6.84134911,146.06,146.0,63.8618]
[1641632884762,27.66479,146.08,146.0,63.8618]
[1641632884962,27.66479,146.08,146.0,71.0118]
[1641632885164,72.48627746,146.1,146.0,71.0118]
[1641632885364,6.83947746,146.1,146.0,71.0118]
[1641632885568,6.83947746,146.1,146.0,75.0118]
[1641632885764,6.83947746,146.1,146.0,71.0118]
[1641632885965,10.83947746,146.1,146.01,7.6664618]
[1641632886266,6.83947746,146.1,146.01,7.6664618]
[1641632888366,6.83947746,146.1,146.04,27.66479]
[1641632889469,6.83947746,146.1,146.04,92.70319]
[1641632891573,6.83947746,146.1,146.04,65.0384]
[1641632893575,10.83947746,146.1,146.04,65.0384]
[1641632893776,6.83947746,146.1,146.04,65.0384]
[1641632894276,10.83947746,146.1,146.04,65.0384]
[1641632894476,27.66479,146.08,146.04,65.0384]
[1641632896177,6.83947746,146.1,146.04,65.0384]
[1641632897781,27.66479,146.11,146.04,73.4204]
[1641632898380,27.66479,146.11,146.05,35.34388592]
[1641632899181,6.83737308,146.14,146.05,35.34388592]
[1641632899381,6.83737308,146.14,146.06,7.67909592]
[1641632900380,34.50216308,146.14,146.06,7.67909592]
[1641632901182,34.50216308,146.14,146.05,27.66479]
[1641632901579,6.83737308,146.14,146.05,31.66479]
[1641632901980,6.83737308,146.14,146.05,27.66479]
[1641632902183,6.83737308,146.14,146.05,31.66479]
[1641632902382,6.83737308,146.14,146.1,27.66479]
[1641632902580,6.83737308,146.14,146.1,33.06779]
[1641632903682,10.16,146.16,146.1,33.06779]
[1641632908990,14.16,146.16,146.1,33.06779]
[1641632909190,10.16,146.16,146.1,33.06779]
[1641632911193,14.16,146.16,146.1,33.06779]
[1641632911595,14.16,146.16,146.1,27.66479]
[1641632911795,4.0,146.15,146.09,27.66479]
[1641632912095,53.1369998,146.2,146.09,27.66479]
[1641632912096,14.50549515,146.22,146.14,4.0]
[1641632912293,32.51290754,146.24,146.21,4.0]
[1641632912493,8.51290754,146.24,146.23,27.66479]
[1641632912893,57.63287865,146.29,146.23,31.66479]
[1641632913096,34.49422486,146.32,146.25,4.0]
[1641632913296,4.0,146.38,146.25,4.0]
[1641632913297,4.0,146.39,146.27,4.0]
[1641632913593,10.18,146.4,146.28,4.0]
[1641632913795,10.18,146.4,146.29,4.0]
[1641632913994,10.18,146.4,146.31,4.0]
[1641632914193,6.82477393,146.42,146.31,7.43]
[1641632914394,6.82384251,146.44,146.34,4.0]
[1641632914696,6.82384251,146.44,146.37,27.66479]
[1641632914895,74.71392841,146.5,146.37,34.05979]
[1641632915297,10.8231441,146.46,146.37,34.05979]
[1641632915797,4.0,146.45,146.37,34.05979]
[1641632916196,10.8231441,146.46,146.37,34.05979]
[1641632916597,27.66479,146.45,146.37,27.66479]
[1641632916796,27.66479,146.45,146.35,27.66479]
[1641632916997,4.0,146.4,146.35,27.66479]
[1641632917199,4.0,146.4,146.33,64.459]
[1641632917398,6.82617154,146.39,146.33,64.459]
[1641632918401,6.82500683,146.42,146.33,56.7010289]
[1641632918600,27.66479,146.39,146.33,56.7010289]
[1641632920303,6.82500683,146.42,146.33,56.7010289]
[1641632920504,27.66479,146.41,146.33,65.3490289]
[1641632921104,4.0,146.4,146.33,65.3490289]
[1641632921303,4.0,146.4,146.33,8.648]
[1641632921503,4.0,146.4,146.3,7.09]
[1641632921704,4.0,146.4,146.29,93.69219]
[1641632922205,4.0,146.39,146.29,93.69219]
[1641632922404,4.0,146.39,146.29,27.66479]
[1641632922605,27.66479,146.36,146.29,27.66479]
[1641632922805,27.66479,146.41,146.29,27.66479]
[1641632923005,31.66479,146.41,146.29,35.45779]
[1641632923205,4.0,146.4,146.29,35.45779]
[1641632923608,6.82663754,146.38,146.29,35.45779]
[1641632923806,6.82570561,146.4,146.29,35.45779]
[1641632924910,4.0,146.39,146.29,35.45779]
[1641632925108,6.82570561,146.4,146.29,35.45779]
[1641632925708,27.66479,146.41,146.29,35.45779]
[1641632925908,27.66479,146.41,146.3,4.0]
[1641632926111,27.66479,146.41,146.29,35.45779]
[1641632926310,27.66479,146.41,146.29,39.45779]
[1641632926510,6.82500683,146.42,146.31,4.0]
[1641632926710,6.82500683,146.42,146.34,27.66479]
[1641632926915,6.82500683,146.42,146.34,34.57179]
[1641632928417,63.0451,146.45,146.34,34.57179]
[1641632928614,37.68479,146.46,146.34,34.57179]
[1641632929015,6.82430819,146.43,146.34,34.57179]
[1641632930316,6.82221313,146.48,146.34,34.57179]
[1641632930515,6.82221313,146.48,146.35,66.661]
[1641632930715,34.48700313,146.48,146.38,27.66479]
[1641632931317,6.82221313,146.48,146.38,27.66479]
[1641632931517,27.66479,146.5,146.38,27.66479]
[1641632931917,31.66479,146.5,146.38,27.66479]
[1641632932116,6.82198042,146.48,146.38,27.66479]
[1641632932317,13.70098042,146.48,146.38,27.66479]
[1641632932618,13.70098042,146.48,146.41,27.66479]
[1641632934018,4.0,146.47,146.41,27.66479]
[1641632934219,6.82360969,146.45,146.38,27.66479]
[1641632934419,13.77860969,146.45,146.38,27.66479]
[1641632934819,41.44339969,146.45,146.38,27.66479]
[1641632936020,34.61979,146.45,146.38,27.66479]
[1641632936619,6.955,146.45,146.38,27.66479]
[1641632936822,4.0,146.49,146.38,27.66479]
[1641632937620,4.0,146.48,146.38,27.66479]
[1641632938221,6.82267858,146.47,146.38,27.66479]
[1641632938622,10.82267858,146.47,146.38,27.66479]
[1641632938821,31.66479,146.46,146.38,27.66479]
[1641632939222,4.0,146.44,146.38,27.66479]
[1641632939421,31.66479,146.46,146.38,27.66479]
[1641632940026,27.66479,146.46,146.38,27.66479]
[1641632940224,27.66479,146.46,146.38,34.53079]
[1641632941427,32.41998815,146.46,146.38,34.53079]
[1641632942329,27.66479,146.46,146.38,34.53079]
[1641632943129,4.75519815,146.45,146.38,34.53079]
[1641632943931,4.75519815,146.47,146.39,6.42773377]
[1641632945031,8.75519815,146.48,146.4,4.75519815]
[1641632945831,4.75519815,146.48,146.4,4.75519815]
[1641632946033,14.95519815,146.48,146.4,4.75519815]
[1641632946233,4.75519815,146.48,146.4,12.14119815]
[1641632946436,4.75519815,146.48,146.4,7.386]
[1641632946633,4.75519815,146.47,146.4,7.386]
[1641632946832,4.75519815,146.47,146.41,27.66479]
[1641632947434,4.0,146.49,146.41,32.41998815]
[1641632947635,32.41998815,146.5,146.41,32.41998815]
[1641632948235,32.41998815,146.5,146.41,97.61408815]
[1641632948636,4.75519815,146.48,146.41,92.85889]
[1641632951441,4.75519815,146.49,146.41,92.85889]
[1641632952441,4.75519815,146.48,146.41,92.85889]
[1641632955142,4.75519815,146.49,146.41,125.27887815]
[1641632956645,4.0,146.47,146.41,69.94929815]
[1641632956847,10.976,146.47,146.41,4.75519815]
[1641632957045,27.66479,146.46,146.41,4.75519815]
[1641632957246,6.976,146.47,146.42,6.43183321]
[1641632957247,11.73119815,146.47,146.42,6.43183321]
[1641632957446,4.75519815,146.47,146.42,6.43183321]
[1641632958249,4.75519815,146.48,146.43,4.75519815]
[1641632959149,4.75519815,146.48,146.43,32.41998815]
[1641632959352,4.75519815,146.47,146.43,34.09662321]
[1641632960254,4.75519815,146.47,146.43,32.41998815]
[1641632961153,4.75519815,146.47,146.46,27.66479]
[1641632961455,4.75519815,146.47,146.46,33.86579]
[1641632961855,4.75519815,146.5,146.46,33.86579]
[1641632962654,4.75519815,146.49,146.46,33.86579]
[1641632964557,4.75519815,146.49,146.46,27.66479]
[1641632965761,4.75519815,146.48,146.46,27.66479]
[1641632966561,4.75519815,146.48,146.43,100.27328815]
[1641632967060,12.79119815,146.48,146.43,4.75519815]
[1641632967259,12.79119815,146.48,146.42,4.75519815]
[1641632967260,4.75519815,146.47,146.42,4.75519815]
[1641632968160,4.75519815,146.46,146.41,4.75519815]
[1641632969164,4.75519815,146.46,146.42,32.41998815]
[1641632969362,4.75519815,146.46,146.42,40.97698815]
[1641632969963,4.75519815,146.47,146.42,40.97698815]
[1641632971066,4.75519815,146.49,146.45,4.75519815]
[1641632971268,4.75519815,146.49,146.45,32.41998815]
[1641632973872,4.75519815,146.49,146.46,6.4340311]
[1641632975773,4.75519815,146.49,146.46,4.75519815]
[1641632975974,4.75519815,146.49,146.45,32.41998815]
[1641632976377,9.815e-05,146.49,146.45,32.41998815]
[1641632976576,4.83441129,146.48,146.45,32.41998815]
[1641632976776,38.06055218,146.55,146.47,4.0]
[1641632976978,34.06055218,146.55,146.47,7.18]
[1641632977176,34.06055218,146.55,146.5,27.66479]
[1641632977377,28.06055218,146.55,146.5,33.49779]
[1641632977780,57.63287865,146.59,146.5,33.49779]
[1641632978178,69.25907469,146.59,146.5,33.49779]
[1641632978378,11.62619604,146.59,146.5,33.49779]
[1641632979184,18.4421317,146.61,146.5,61.16258]
[1641632979881,22.4421317,146.61,146.51,65.7195]
[1641632980083,18.4421317,146.61,146.51,65.7195]
[1641632980282,6.81593566,146.61,146.51,65.7195]
[1641632981184,6.81593566,146.61,146.53,27.66479]
[1641632981984,6.81593566,146.61,146.54,4.0]
[1641632982184,6.81593566,146.61,146.53,23.91714422]
[1641632982586,10.81593566,146.61,146.53,23.91714422]
[1641632983185,10.81593566,146.61,146.56,27.66479]
[1641632983385,6.81593566,146.61,146.56,27.66479]
[1641632983585,0.1226272,146.62,146.56,27.66479]
[1641632983786,0.1226272,146.62,146.56,93.46379]
[1641632984087,0.1226272,146.62,146.56,101.25179]
[1641632985188,0.1226272,146.62,146.56,128.91658]
[1641632987587,0.1226272,146.62,146.56,101.25179]
[1641632987787,0.1226272,146.62,146.56,93.46379]
[1641632988686,0.1226272,146.62,146.56,99.37379]
[1641632989189,0.1226272,146.62,146.56,127.03858]
[1641632991291,4.0,146.61,146.59,27.66479]
[1641632991494,0.1226272,146.62,146.56,93.46379]
[1641632991691,6.81616795,146.61,146.49,68.4176]
[1641632991991,4.0,146.52,146.49,68.4176]
[1641632992191,12.179,146.52,146.46,66.4836]
[1641632992390,12.179,146.52,146.4,17.23802686]
[1641632992591,8.179,146.52,146.41,66.8998]
[1641632993191,10.8189567,146.55,146.46,27.66479]
[1641632993690,6.8189567,146.55,146.46,27.66479]
[1641632993890,6.8182593,146.56,146.46,27.66479]
[1641632994291,10.8182593,146.56,146.46,27.66479]
[1641632994890,4.0,146.56,146.46,27.66479]
[1641632996093,55.32958,146.58,146.46,27.66479]
[1641632996293,55.32958,146.58,146.47,63.7888]
[1641632996492,4.0,146.57,146.47,63.7888]
[1641632997293,27.66479,146.58,146.52,27.66479]
[1641632997593,4.0,146.6,146.52,36.26079]
[1641632998193,27.7874172,146.62,146.52,36.26079]
[1641632998594,4.0,146.6,146.52,36.26079]
[1641632999896,9.413,146.6,146.52,27.66479]
[1641633001098,4.0,146.6,146.52,27.66479]
[1641633001797,4.0,146.61,146.52,27.66479]
[1641633001998,38.60312058,146.62,146.52,33.64179]
[1641633002198,4.0,146.6,146.52,33.64179]
[1641633002399,4.0,146.56,146.52,33.64179]
[1641633002799,6.002,146.6,146.52,33.64179]
[1641633002999,6.002,146.6,146.52,95.72889]
[1641633003199,4.0,146.53,146.52,95.72889]
[1641633003402,4.0,146.56,146.52,27.66479]
[1641633003801,4.0,146.55,146.52,27.66479]
[1641633004003,4.0,146.55,146.49,63.9973]
[1641633004702,14.13502686,146.57,146.49,63.9973]
[1641633005302,14.13502686,146.57,146.51,27.66479]
[1641633005902,7.317,146.57,146.49,63.9973]
[1641633006106,4.0,146.55,146.49,63.9973]
[1641633007005,92.12119,146.6,146.49,63.9973]
[1641633007204,4.0,146.56,146.49,63.9973]
[1641633007405,12.326,146.56,146.51,27.66479]
[1641633008004,8.326,146.56,146.51,27.66479]
[1641633008607,8.326,146.56,146.51,42.13893015]
[1641633009406,8.326,146.56,146.51,69.80372015]
[1641633009606,4.0,146.59,146.51,55.32958]
[1641633010006,8.586,146.61,146.51,55.32958]
[1641633010207,4.0,146.58,146.51,69.80372015]
[1641633010406,8.586,146.61,146.51,69.80372015]
[1641633011107,0.1226272,146.62,146.51,69.80372015]
[1641633011306,4.0,146.57,146.51,69.80372015]
[1641633011508,0.1226272,146.62,146.54,27.66479]
[1641633011706,4.0,146.59,146.54,27.66479]
[1641633013008,11.962,146.59,146.54,27.66479]
[1641633014110,7.962,146.59,146.54,27.66479]
[1641633015512,4.0,146.56,146.54,27.66479]
[1641633015713,4.0,146.55,146.54,27.66479]
[1641633016413,6.291,146.56,146.54,27.66479]
[1641633017313,4.0,146.59,146.54,27.66479]
[1641633017512,4.0,146.59,146.54,29.34482755]
[1641633018316,4.0,146.59,146.55,1.68003755]
[1641633021617,4.0,146.56,146.55,1.68003755]
[1641633021819,9.516,146.56,146.55,1.68003755]
[1641633022019,5.516,146.56,146.55,1.68003755]
[1641633022222,9.516,146.56,146.55,1.68003755]
[1641633022419,13.516,146.56,146.52,14.47414015]
[1641633022720,5.516,146.56,146.52,14.47414015]
[1641633022918,5.516,146.56,146.46,64.7804]
[1641633022919,4.0,146.54,146.51,14.47414015]
[1641633023120,5.516,146.56,146.51,14.47414015]
[1641633023321,4.0,146.54,146.51,14.47414015]
[1641633023621,4.0,146.53,146.51,14.47414015]
[1641633024021,4.0,146.53,146.49,42.13893015]
[1641633024624,12.272,146.53,146.49,42.13893015]
[1641633025424,8.272,146.53,146.49,42.13893015]
[1641633025927,12.272,146.53,146.49,42.13893015]
[1641633026124,8.272,146.53,146.49,42.13893015]
[1641633026725,12.272,146.53,146.49,14.47414015]
[1641633027125,12.272,146.53,146.47,42.13893015]
[1641633027324,4.0,146.52,146.47,42.13893015]
[1641633027525,38.48351422,146.55,146.47,42.13893015]
[1641633027725,4.0,146.49,146.47,42.13893015]
[1641633028727,4.0,146.49,146.47,27.66479]
[1641633029226,38.48351422,146.55,146.47,27.66479]
[1641633029429,38.48351422,146.55,146.46,14.47414015]
[1641633029430,7.522,146.52,146.46,14.47414015]
[1641633029628,4.0,146.49,146.46,14.47414015]
[1641633029829,11.522,146.52,146.46,14.47414015]
[1641633030029,66.2414,146.54,146.46,14.47414015]
[1641633030229,4.0,146.49,146.46,14.47414015]
[1641633030429,4.0,146.54,146.46,14.47414015]
[1641633030729,4.0,146.48,146.46,14.47414015]
[1641633030930,4.0,146.48,146.43,14.47414015]
[1641633031533,4.0,146.51,146.43,14.47414015]
[1641633031830,4.0,146.47,146.43,14.47414015]
[1641633032731,64.8531,146.53,146.43,14.47414015]
[1641633032931,64.8531,146.53,146.43,20.81614015]
[1641633033132,4.0,146.5,146.43,20.81614015]
[1641633033333,4.0,146.52,146.43,20.81614015]
[1641633033533,4.0,146.5,146.43,20.81614015]
[1641633033732,4.0,146.53,146.43,20.81614015]
[1641633034034,4.0,146.52,146.48,27.66479]
[1641633034234,4.0,146.49,146.48,27.66479]
[1641633034535,4.0,146.49,146.46,14.47414015]
[1641633035234,4.0,146.51,146.45,14.47414015]
[1641633035435,4.0,146.47,146.45,14.47414015]
[1641633035933,4.0,146.46,146.45,14.47414015]
[1641633036735,4.0,146.46,146.42,22.16210758]
[1641633037340,4.0,146.46,146.45,4.81826662]
[1641633038337,4.0,146.46,146.42,14.47414015]
[1641633038538,12.317,146.46,146.42,22.15651352]
[1641633038737,8.317,146.46,146.42,22.15651352]
[1641633038940,4.0,146.44,146.42,22.15651352]
[1641633039138,4.0,146.44,146.43,14.47414015]
[1641633040040,8.0,146.44,146.42,14.44685061]
[1641633040238,4.0,146.43,146.42,14.44685061]
[1641633040438,11.022,146.43,146.42,14.44685061]
[1641633040839,11.022,146.43,146.41,4.81028935]
[1641633041039,7.022,146.43,146.41,4.81028935]
[1641633041239,4.0,146.42,146.41,4.81028935]
[1641633042040,4.0,146.42,146.4,4.81028935]
[1641633042442,4.0,146.44,146.4,4.81028935]
[1641633042642,4.0,146.41,146.4,4.81028935]
[1641633042842,10.874,146.41,146.4,4.81028935]
[1641633043043,6.874,146.41,146.39,4.81028935]
[1641633043343,3.1208415,146.41,146.39,4.81028935]
[1641633043943,30.7856315,146.41,146.38,4.81028935]
[1641633044745,3.1208415,146.41,146.38,4.81028935]
[1641633044947,4.0,146.42,146.37,4.81028935]
[1641633045145,10.82454105,146.43,146.37,4.81028935]
[1641633045345,4.0,146.42,146.37,4.81028935]
[1641633045745,4.0,146.4,146.37,4.81028935]
[1641633045945,31.66479,146.4,146.37,4.81028935]
[1641633046146,27.66479,146.4,146.37,4.81028935]
[1641633046347,10.82454105,146.43,146.37,4.81028935]
[1641633046747,4.0,146.43,146.37,10.27928935]
[1641633046946,63.0037,146.45,146.37,5.469]
[1641633047147,38.48770134,146.46,146.37,5.469]
[1641633047551,4.0,146.45,146.37,5.469]
[1641633048053,34.48770134,146.46,146.39,4.81028935]
[1641633048252,10.82407534,146.44,146.39,4.81028935]
[1641633048655,4.0,146.41,146.39,4.81028935]
[1641633048852,4.0,146.41,146.37,4.81028935]
[1641633049755,4.0,146.4,146.37,4.81028935]
[1641633051155,4.0,146.39,146.37,4.81028935]
[1641633051958,12.722,146.39,146.38,4.81028935]
[1641633052658,12.722,146.39,146.35,27.66479]
[1641633053559,4.0,146.38,146.35,27.66479]
[1641633055363,9.377,146.38,146.35,27.66479]
[1641633055562,9.377,146.38,146.34,105.73968562]
[1641633055761,4.0,146.37,146.34,38.42058562]
[1641633055961,4.0,146.37,146.33,38.42058562]
[1641633056160,9.377,146.38,146.33,38.42058562]
[1641633056762,9.377,146.38,146.31,78.32114442]
[1641633057462,9.377,146.38,146.37,4.81571314]
[1641633057662,9.377,146.38,146.31,78.32114442]
[1641633057963,16.20363754,146.38,146.31,78.32114442]
[1641633058165,16.20363754,146.38,146.31,66.08537562]
[1641633058364,16.20363754,146.38,146.31,27.66479]
[1641633058762,12.20363754,146.38,146.31,27.66479]
[1641633058963,4.0,146.34,146.29,38.42058562]
[1641633059162,4.0,146.36,146.29,38.42058562]
[1641633059363,4.0,146.35,146.29,38.42058562]
[1641633059565,65.9744,146.37,146.29,38.42058562]
[1641633059965,16.20363754,146.38,146.27,50.65229551]
[1641633060164,12.20363754,146.38,146.28,27.66479]
[1641633060366,4.0,146.36,146.28,27.66479]
[1641633060566,12.20363754,146.38,146.28,27.66479]
[1641633060567,4.0,146.35,146.28,27.66479]
[1641633060767,12.201,146.35,146.28,27.66479]
[1641633061065,12.201,146.35,146.29,7.66534688]
[1641633061266,8.201,146.35,146.29,7.66534688]
[1641633061468,12.201,146.35,146.29,7.66534688]
[1641633061666,8.201,146.35,146.29,7.66534688]
[1641633062570,8.201,146.35,146.29,9.33656933]
[1641633063670,4.0,146.33,146.29,9.33656933]
[1641633063871,8.201,146.35,146.29,9.33656933]
[1641633064071,12.201,146.35,146.29,9.33656933]
[1641633064471,19.02926903,146.35,146.29,9.33656933]
[1641633065373,4.0,146.34,146.29,9.33656933]
[1641633065575,4.0,146.33,146.29,9.33656933]
[1641633065974,15.02926903,146.35,146.29,9.33656933]
[1641633066175,31.66479,146.33,146.29,9.33656933]
[1641633066373,4.0,146.32,146.29,9.33656933]
[1641633066574,7.83,146.32,146.29,9.33656933]
[1641633066774,7.83,146.32,146.29,7.66534688]
[1641633066974,7.83,146.32,146.27,67.2023]
[1641633067174,7.83,146.32,146.24,60.00450153]
[1641633067676,7.83,146.32,146.26,38.42058562]
[1641633068074,31.66479,146.33,146.26,38.42058562]
[1641633068277,27.66479,146.33,146.26,47.75715495]
[1641633068475,27.66479,146.33,146.28,38.42058562]
[1641633068675,31.66479,146.36,146.28,38.42058562]
[1641633069479,4.0,146.35,146.3,38.42058562]
[1641633069679,4.0,146.32,146.3,38.42058562]
[1641633069880,4.0,146.31,146.27,1.67122245]
[1641633070179,27.66479,146.28,146.27,1.67122245]
[1641633070379,33.16979,146.28,146.26,60.16084017]
[1641633071181,5.505,146.28,146.26,60.16084017]
[1641633071880,5.505,146.28,146.26,12.24734658]
[1641633072182,5.505,146.28,146.23,64.8221]
[1641633072982,27.66479,146.3,146.24,9.33656933]
[1641633073384,4.0,146.27,146.24,9.33656933]
[1641633073584,8.744,146.27,146.24,9.33656933]
[1641633074787,8.744,146.27,146.2,9.33656933]
[1641633078190,8.744,146.27,146.21,27.66479]
[1641633078992,27.66479,146.3,146.21,27.66479]
[1641633079392,27.66479,146.3,146.22,9.33656933]
[1641633082998,27.66479,146.3,146.2,16.20266531]
[1641633082999,10.83410217,146.23,146.14,63.8771]
[1641633083198,6.83573723,146.19,146.16,49.65287865]
[1641633083398,12.91173723,146.19,146.16,42.69287865]
[1641633083599,12.91173723,146.19,146.16,23.09287865]
[1641633084101,40.57652723,146.19,146.13,4.0]
[1641633084302,6.076,146.19,146.16,4.0]
[1641633084499,6.83456925,146.21,146.13,5.633]
[1641633084802,6.83456925,146.21,146.15,4.0]
[1641633084999,6.83456925,146.21,146.16,4.0]
[1641633085199,6.83456925,146.21,146.16,7.461]
[1641633085499,6.83456925,146.21,146.16,11.461]
[1641633085699,6.83456925,146.21,146.16,7.461]
[1641633086202,6.83456925,146.21,146.17,27.66479]
[1641633089011,6.83456925,146.21,146.17,31.66479]
[1641633089210,6.83456925,146.21,146.17,27.66479]
[1641633090012,6.83456925,146.21,146.17,42.09343289]
[1641633090311,6.83456925,146.21,146.17,14.42864289]
[1641633093114,6.83456925,146.21,146.18,14.42864289]
[1641633093514,6.542,146.23,146.18,23.29464289]
[1641633093916,6.542,146.23,146.19,14.42864289]
[1641633094917,6.83363515,146.23,146.19,14.42864289]
[1641633095418,10.83363515,146.23,146.19,14.42864289]
[1641633095619,10.83363515,146.23,146.18,14.42864289]
[1641633095818,6.83363515,146.23,146.18,14.42864289]
[1641633096923,10.83363515,146.23,146.18,14.42864289]
[1641633097124,6.83363515,146.23,146.17,42.09343289]
[1641633097722,6.83363515,146.23,146.18,14.42864289]
[1641633098322,4.0,146.24,146.18,14.42864289]
[1641633098522,4.0,146.24,146.18,21.46264289]
[1641633099123,4.0,146.23,146.18,21.46264289]
[1641633101224,4.0,146.23,146.19,14.42864289]
[1641633102526,10.83386865,146.23,146.19,14.42864289]
[1641633103426,10.83386865,146.23,146.18,28.53191862]
[1641633103627,27.66479,146.26,146.18,28.53191862]
[1641633104227,47.66479,146.26,146.18,28.53191862]
[1641633104428,27.66479,146.23,146.18,22.09191862]
[1641633104829,27.66479,146.23,146.18,14.42864289]
[1641633105028,6.83526999,146.21,146.13,38.49225886]
[1641633105930,6.83526999,146.21,146.12,7.65961938]
[1641633106329,27.66479,146.16,146.12,7.65961938]
[1641633106728,27.66479,146.16,146.12,58.38667221]
[1641633107334,27.66479,146.16,146.13,4.0]
[1641633107931,33.73079,146.18,146.13,4.0]
[1641633108833,27.66479,146.18,146.13,4.0]
[1641633109434,34.50122822,146.18,146.13,4.0]
[1641633109634,34.50122822,146.18,146.13,12.656]
[1641633115341,44.84122822,146.18,146.13,12.656]
[1641633116340,44.84122822,146.18,146.13,4.0]
[1641633117241,53.07222822,146.18,146.13,4.0]
[1641633117941,53.07222822,146.18,146.12,7.65961938]
[1641633118143,53.07222822,146.18,146.17,4.83127149]
[1641633118441,53.07222822,146.18,146.17,1e-08]